bitfinex/quotes_BTCUSD_20250530
["timestamp","ask_amount","ask_price","bid_price","bid_amount"]
[1748584238944,1.34134392,106090.0,106080.0,0.09996227]
[1748584239855,1.25134392,106090.0,106080.0,0.09996227]
[1748584240073,1.34134392,106090.0,106080.0,0.09996227]
[1748584240967,1.32594593,106090.0,106080.0,0.09996227]
[1748584243645,1.34184593,106090.0,106080.0,0.09996227]
[1748584244704,1.32594593,106090.0,106080.0,0.09996227]
[1748584245158,1.29403976,106090.0,106080.0,0.09996227]
[1748584245378,1.34142647,106090.0,106080.0,0.09996227]
[1748584247289,1.23592647,106090.0,106080.0,0.09996227]
[1748584247493,1.32592647,106090.0,106080.0,0.09996227]
[1748584249428,1.32594581,106090.0,106080.0,0.09996227]
[1748584253784,1.32594603,106090.0,106080.0,0.09996227]
[1748584258170,1.32594591,106090.0,106080.0,0.09996227]
[1748584261141,1.3259461,106090.0,106080.0,0.09996227]
[1748584261357,1.3415461,106090.0,106080.0,0.09996227]
[1748584262251,1.3259461,106090.0,106080.0,0.09996227]
[1748584262908,1.2759461,106090.0,106080.0,0.09996227]
[1748584264270,1.2759061,106090.0,106080.0,0.09996227]
[1748584264480,1.2593061,106090.0,106080.0,0.09996227]
[1748584264979,1.25930727,106090.0,106080.0,0.09996227]
[1748584265611,1.26869478,106090.0,106080.0,0.09996227]
[1748584265839,1.17873478,106090.0,106080.0,0.09996227]
[1748584266058,1.27740407,106090.0,106080.0,0.11506227]
[1748584269409,1.27740393,106090.0,106080.0,0.11506227]
[1748584269619,1.26286308,106090.0,106080.0,0.13166227]
[1748584270027,1.27791938,106090.0,106080.0,0.11506227]
[1748584270852,1.27791784,106090.0,106080.0,0.11506227]
[1748584273600,1.27791202,106090.0,106080.0,0.11506227]
[1748584275418,1.27791132,106090.0,106080.0,0.11506227]
[1748584277639,1.37700132,106090.0,106080.0,0.09996227]
[1748584277853,1.27791132,106090.0,106080.0,0.09996227]
[1748584278776,1.27791132,106090.0,106080.0,0.11496227]
[1748584280497,1.26920203,106090.0,106080.0,0.13046227]
[1748584280720,1.27791132,106090.0,106080.0,0.13046227]
[1748584281381,1.27791132,106090.0,106080.0,0.11496227]
[1748584282425,1.27790838,106090.0,106080.0,0.09996227]
[1748584283769,1.29300838,106090.0,106080.0,0.09996227]
[1748584284658,1.29958518,106090.0,106080.0,0.09996227]
[1748584285093,1.29958518,106090.0,106050.0,0.0156]
[1748584285094,0.53800094,106060.0,106050.0,0.0156]
[1748584285341,0.19801961,106050.0,106040.0,0.0321]
[1748584286124,0.20704147,106050.0,106040.0,0.0156]
[1748584286399,0.20704153,106050.0,106040.0,0.0156]
[1748584286881,0.19803829,106040.0,106030.0,0.0318]
[1748584287141,0.20706021,106040.0,106030.0,0.0318]
[1748584288349,0.72807416,106040.0,106030.0,0.001]
[1748584288584,0.19805697,106030.0,106020.0,0.01659226]
[1748584288828,0.28911092,106030.0,106020.0,0.01659226]
[1748584290297,0.62911092,106030.0,106020.0,0.01659226]
[1748584290510,0.62911092,106030.0,106020.0,9.226e-05]
[1748584291182,0.62911092,106030.0,106020.0,0.01579226]
[1748584291630,0.63011092,106030.0,106020.0,0.01579226]
[1748584293744,0.19807565,106020.0,106010.0,0.00769226]
[1748584293976,0.19807565,106020.0,106010.0,0.00774129]
[1748584295323,0.19807565,106020.0,106010.0,0.00874129]
[1748584295590,0.53807565,106020.0,106010.0,0.00874129]
[1748584296081,0.53807565,106020.0,106010.0,0.00974129]
[1748584296781,0.53807565,106020.0,106010.0,0.02504129]
[1748584301622,0.53807565,106020.0,106010.0,0.31596129]
[1748584311644,0.53807565,106020.0,106010.0,0.30826903]
[1748584312898,0.19807565,106020.0,106010.0,0.32416903]
[1748584315177,0.19807565,106020.0,106010.0,0.71541397]
[1748584315923,0.19807565,106020.0,106010.0,0.80533397]
[1748584318203,0.19807565,106020.0,106010.0,0.41408903]
[1748584318376,0.19807565,106020.0,106010.0,0.12316903]
[1748584318586,0.19807565,106020.0,106010.0,0.41404903]
[1748584319415,0.19807565,106020.0,106010.0,0.41400903]
[1748584321704,0.19807565,106020.0,106010.0,0.41529974]
[1748584321925,0.19807565,106020.0,106010.0,0.89759863]
[1748584323257,0.19807565,106020.0,106010.0,0.50635369]
[1748584324116,0.19807565,106020.0,106010.0,0.03324903]
[1748584324329,0.19807565,106020.0,106010.0,0.32408903]
[1748584324330,0.18750765,106020.0,106010.0,0.32408903]
[1748584329583,0.18750765,106020.0,106010.0,0.30818903]
[1748584331427,0.18750765,106020.0,106010.0,0.01734903]
[1748584331641,0.18750765,106020.0,106010.0,0.30818903]
[1748584335041,0.18750765,106020.0,106010.0,0.32607974]
[1748584338127,0.18750765,106020.0,106010.0,0.41713369]
[1748584342658,0.18750765,106020.0,106010.0,0.50697369]
[1748584344191,0.19693956,106020.0,106010.0,3.19893569]
[1748584344416,0.21691874,106030.0,106020.0,1.83196145]
[1748584344648,0.21691874,106030.0,106020.0,0.59509866]
[1748584344649,0.20748799,106030.0,106020.0,0.59509866]
[1748584344876,0.20748799,106030.0,106020.0,0.52529666]
[1748584345098,0.20748799,106030.0,106020.0,0.48665466]
[1748584345329,0.20748799,106030.0,106020.0,0.88665466]
[1748584345552,0.20748799,106030.0,106020.0,1.06061266]
[1748584346215,0.20748799,106030.0,106020.0,1.06261266]
[1748584346659,0.20748799,106030.0,106020.0,1.23855466]
[1748584347220,0.20748799,106030.0,106020.0,0.98248166]
[1748584347448,0.20748799,106030.0,106020.0,0.81541166]
[1748584352788,0.00943075,106030.0,106020.0,6.1987338]
[1748584353027,0.20746816,106040.0,106030.0,2.88417391]
[1748584353275,0.20746816,106040.0,106030.0,2.61409386]
[1748584353488,0.19803838,106040.0,106030.0,2.30961086]
[1748584353693,0.19803838,106040.0,106030.0,1.67782286]
[1748584353913,0.19803838,106040.0,106030.0,0.52484466]
[1748584354147,0.19803838,106040.0,106030.0,1.07415066]
[1748584355222,0.19803838,106040.0,106030.0,1.07715066]
[1748584356506,0.19803838,106040.0,106030.0,1.07915066]
[1748584362954,0.19803838,106040.0,106030.0,1.28231737]
[1748584363409,0.19803838,106040.0,106030.0,1.09369151]
[1748584365303,0.19803838,106040.0,106030.0,1.1031228]
[1748584365712,0.19803838,106040.0,106030.0,1.09369151]
[1748584368640,0.19803838,106040.0,106030.0,0.71321151]
[1748584368865,0.19803838,106040.0,106030.0,0.97943466]
[1748584373272,0.19803838,106040.0,106030.0,1.38659466]
[1748584375232,0.19803838,106040.0,106030.0,1.40199466]
[1748584376330,0.18859028,106050.0,106040.0,0.04723156]
[1748584376533,0.1885725,106060.0,106050.0,0.17908071]
[1748584376740,0.1885725,106060.0,106050.0,0.65041466]
[1748584376948,0.1885725,106060.0,106050.0,1.23900494]
[1748584377189,0.1885725,106060.0,106050.0,1.25786369]
[1748584377394,0.1885725,106060.0,106050.0,1.2782753]
[1748584377603,0.1885725,106060.0,106050.0,1.28775594]
[1748584377814,0.1885725,106060.0,106050.0,1.31563007]
[1748584379083,0.1885725,106060.0,106050.0,1.31663007]
[1748584379286,0.1885725,106060.0,106050.0,1.30720065]
[1748584379946,0.1885725,106060.0,106050.0,1.11861037]
[1748584380153,0.1885725,106060.0,106050.0,1.11961037]
[1748584380583,0.1885725,106060.0,106050.0,1.11018086]
[1748584381245,0.1885725,106060.0,106050.0,1.09488086]
[1748584381665,0.1885725,106060.0,106050.0,1.07878086]
[1748584385632,0.1885725,106060.0,106050.0,0.7723893]
[1748584385950,0.2201725,106060.0,106050.0,0.71233301]
[1748584386159,0.2201725,106060.0,106050.0,1.09245301]
[1748584391008,0.2201725,106060.0,106050.0,1.09241301]
[1748584391449,0.2201725,106060.0,106050.0,1.08896801]
[1748584393848,0.2201725,106060.0,106050.0,0.61191001]
[1748584394063,0.2201725,106060.0,106050.0,0.21191001]
[1748584394273,0.2201725,106060.0,106050.0,0.50235001]
[1748584395784,0.2201725,106060.0,106050.0,0.47447369]
[1748584396677,0.2201725,106060.0,106050.0,0.45733769]
[1748584396889,0.2201725,106060.0,106050.0,0.47588829]
[1748584397782,0.2201725,106060.0,106050.0,0.48517836]
[1748584398004,0.2201725,106060.0,106050.0,0.88517836]
[1748584406675,0.1885725,106060.0,106050.0,1.04989836]
[1748584407740,0.1885725,106060.0,106050.0,1.06569836]
[1748584409043,0.1885725,106060.0,106050.0,1.08079836]
[1748584410330,0.18855472,106070.0,106060.0,0.00129071]
[1748584410572,0.18855472,106070.0,106060.0,0.10784466]
[1748584411001,0.18855472,106070.0,106060.0,0.09234466]
[1748584411209,0.18855472,106070.0,106060.0,0.49234466]
[1748584411841,0.18955472,106070.0,106060.0,0.49234466]
[1748584413105,0.19055472,106070.0,106060.0,0.09234466]
[1748584413535,0.19055472,106070.0,106060.0,0.49234466]
[1748584414802,0.20605472,106070.0,106060.0,0.49234466]
[1748584415007,0.22225472,106070.0,106060.0,0.49234466]
[1748584416276,0.19055472,106070.0,106060.0,0.49234466]
[1748584416483,0.19055472,106070.0,106060.0,0.09234466]
[1748584417139,0.19055472,106070.0,106060.0,0.49234466]
[1748584417561,0.20625472,106070.0,106060.0,0.49234466]
[1748584417784,0.20625472,106070.0,106060.0,0.83298066]
[1748584418221,0.19055472,106070.0,106060.0,0.83298066]
[1748584420487,0.22105472,106070.0,106060.0,0.68780666]
[1748584422873,0.22105472,106070.0,106060.0,0.78266466]
[1748584423081,0.22105472,106070.0,106060.0,0.93762666]
[1748584423351,0.22105472,106070.0,106060.0,0.97154166]
[1748584423770,0.22105472,106070.0,106060.0,0.78266466]
[1748584425679,0.22105472,106070.0,106060.0,0.97110566]
[1748584426093,0.22105472,106070.0,106060.0,0.92679666]
[1748584426304,0.22105472,106070.0,106060.0,0.95362266]
[1748584426516,0.22105472,106070.0,106060.0,1.04318266]
[1748584427374,0.22105472,106070.0,106060.0,1.05243366]
[1748584427783,0.22105472,106070.0,106060.0,1.05271366]
[1748584429316,0.22105472,106070.0,106060.0,1.01393066]
[1748584430199,0.22105472,106070.0,106060.0,0.98039066]
[1748584430650,0.22105472,106070.0,106060.0,0.87218466]
[1748584431541,0.22105472,106070.0,106060.0,0.59434066]
[1748584432189,0.22105472,106070.0,106060.0,0.47218466]
[1748584432404,0.22105472,106070.0,106060.0,0.66550066]
[1748584435887,0.22105472,106070.0,106060.0,0.28566066]
[1748584436106,0.22105472,106070.0,106060.0,1.06546066]
[1748584444518,0.20575472,106070.0,106060.0,1.25403316]
[1748584447099,0.20575472,106070.0,106060.0,1.06546066]
[1748584447511,0.22195472,106070.0,106060.0,1.06546066]
[1748584449369,0.22195472,106070.0,106060.0,1.25403316]
[1748584449615,0.20575472,106070.0,106060.0,1.25403316]
[1748584450601,0.22085472,106070.0,106060.0,1.25403316]
[1748584452808,0.22085472,106070.0,106060.0,1.06546066]
[1748584453763,0.22085472,106070.0,106060.0,0.87214466]
[1748584454234,0.22085472,106070.0,106060.0,1.02450766]
[1748584455173,0.22085472,106070.0,106060.0,0.58190466]
[1748584455412,0.22085472,106070.0,106060.0,0.87206466]
[1748584455659,0.22085472,106070.0,106060.0,0.09234466]
[1748584455918,0.22085472,106070.0,106060.0,0.38097071]
[1748584456376,0.22085472,106070.0,106060.0,0.09081071]
[1748584456620,0.22085472,106070.0,106060.0,0.38097071]
[1748584459292,0.22085472,106070.0,106060.0,0.09081071]
[1748584459530,0.22085472,106070.0,106060.0,0.38093071]
[1748584485105,0.22085472,106070.0,106060.0,0.00129071]
[1748584485351,0.22085472,106070.0,106060.0,0.38069071]
[1748584489529,0.22085472,106070.0,106060.0,0.00129071]
[1748584489745,0.22085472,106070.0,106060.0,0.38065071]
[1748584498578,0.22085472,106070.0,106060.0,0.38061071]
[1748584505346,0.22085472,106070.0,106060.0,0.09069071]
[1748584505567,0.22085472,106070.0,106060.0,0.38053071]
[1748584506015,0.22085472,106070.0,106060.0,0.00129071]
[1748584506326,0.22970094,106060.0,106050.0,0.08944903]
[1748584506575,0.22970094,106060.0,106050.0,4.903e-05]
[1748584506791,0.22970094,106060.0,106050.0,0.37928903]
[1748584508233,0.22970094,106060.0,106050.0,0.08944903]
[1748584508539,0.22970094,106060.0,106050.0,0.37928903]
[1748584508810,0.22970094,106060.0,106050.0,0.38028903]
[1748584509268,0.22970094,106060.0,106050.0,0.00104903]
[1748584509483,0.22970094,106060.0,106050.0,0.29088903]
[1748584524628,0.22970094,106060.0,106050.0,0.00104903]
[1748584524855,0.22970094,106060.0,106050.0,0.29084903]
[1748584542419,0.22970094,106060.0,106050.0,0.29073498]
[1748584546333,0.22970094,106060.0,106050.0,0.2899347]
[1748584547486,0.19800094,106060.0,106050.0,0.2899347]
[1748584547711,0.19800094,106060.0,106050.0,0.41337936]
[1748584558461,0.19800094,106060.0,106050.0,0.39797936]
[1748584560026,0.19800094,106060.0,106050.0,0.10817936]
[1748584560283,0.19800094,106060.0,106050.0,0.39773936]
[1748584565817,0.19800094,106060.0,106050.0,0.48693936]
[1748584566545,0.19800094,106060.0,106050.0,0.47123936]
[1748584568137,0.19800094,106060.0,106050.0,0.18167936]
[1748584568399,0.19800094,106060.0,106050.0,0.47119936]
[1748584574746,0.19800094,106060.0,106050.0,0.46155619]
[1748584579478,0.19800094,106060.0,106050.0,0.47735619]
[1748584582359,0.20742929,106060.0,106050.0,2.09390447]
[1748584582569,0.20742929,106060.0,106050.0,2.08381183]
[1748584582570,0.2074292,106060.0,106050.0,2.08381183]
[1748584582996,0.19800094,106060.0,106050.0,2.08381183]
[1748584583198,0.19800094,106060.0,106050.0,2.09324125]
[1748584583415,0.19800094,106060.0,106050.0,1.44550904]
[1748584583608,0.19800094,106060.0,106050.0,1.35890904]
[1748584583818,0.19800094,106060.0,106050.0,1.35162655]
[1748584584027,0.19800094,106060.0,106050.0,1.34219704]
[1748584584222,0.19800094,106060.0,106050.0,1.53078732]
[1748584584429,0.19800094,106060.0,106050.0,1.54021683]
[1748584584628,0.19800094,106060.0,106050.0,1.54964625]
[1748584584856,0.19800094,106060.0,106050.0,1.54021683]
[1748584585266,0.19800094,106060.0,106050.0,1.54964625]
[1748584586282,0.19800094,106060.0,106050.0,1.55907549]
[1748584586706,0.19800094,106060.0,106050.0,1.54964625]
[1748584586926,0.19800094,106060.0,106050.0,1.55907558]
[1748584587593,0.19800094,106060.0,106050.0,1.56850482]
[1748584588324,0.02828435,106060.0,106050.0,1.57793335]
[1748584588541,0.03771288,106060.0,106050.0,1.57793344]
[1748584588746,0.03771288,106060.0,106050.0,1.56850402]
[1748584588968,0.03771288,106060.0,106050.0,1.55907504]
[1748584589205,0.21685747,106060.0,106050.0,1.54021674]
[1748584589425,0.19800103,106060.0,106050.0,1.35162655]
[1748584589660,0.1885725,106060.0,106050.0,1.34219704]
[1748584591204,0.1885725,106060.0,106050.0,1.05267704]
[1748584591426,0.1885725,106060.0,106050.0,1.34203704]
[1748584592327,0.1885725,106060.0,106050.0,1.75858646]
[1748584593639,0.1885725,106060.0,106050.0,1.74915704]
[1748584595481,0.1885725,106060.0,106050.0,1.75858655]
[1748584595687,0.1885725,106060.0,106050.0,1.74915704]
[1748584596737,0.1885725,106060.0,106050.0,1.37059704]
[1748584596938,0.1885725,106060.0,106050.0,1.74899704]
[1748584597880,0.1885725,106060.0,106050.0,1.45967704]
[1748584598084,0.1885725,106060.0,106050.0,1.74895704]
[1748584601848,0.1885725,106060.0,106050.0,1.73277704]
[1748584603991,0.1885725,106060.0,106050.0,1.71747704]
[1748584612902,0.2205725,106060.0,106050.0,0.57891619]
[1748584613117,0.2205725,106060.0,106050.0,0.86811619]
[1748584616189,0.2205725,106060.0,106050.0,0.57891619]
[1748584616403,0.2205725,106060.0,106050.0,0.86811619]
[1748584617249,0.2205725,106060.0,106050.0,0.08283619]
[1748584617461,0.2205725,106060.0,106050.0,0.46103619]
[1748584619559,0.2205725,106060.0,106050.0,0.17183619]
[1748584619773,0.2205725,106060.0,106050.0,0.46103619]
[1748584622210,0.2205725,106060.0,106050.0,0.17183619]
[1748584622414,0.2205725,106060.0,106050.0,0.46099619]
[1748584625048,0.2205725,106060.0,106050.0,0.08283619]
[1748584625255,0.20746824,106040.0,106030.0,2.07612833]
[1748584625476,0.20746824,106040.0,106030.0,2.54539132]
[1748584626343,0.20746824,106040.0,106030.0,3.59798232]
[1748584626555,0.20746824,106040.0,106030.0,3.43793932]
[1748584626980,0.20746824,106040.0,106030.0,3.44093932]
[1748584627198,0.20746824,106040.0,106030.0,1.69138932]
[1748584627423,0.20746824,106040.0,106030.0,3.59928132]
[1748584627634,0.20746824,106040.0,106030.0,3.60228132]
[1748584628101,0.20746824,106040.0,106030.0,3.43476032]
[1748584628315,0.20746824,106040.0,106030.0,3.98333632]
[1748584628525,0.20746824,106040.0,106030.0,3.49437032]
[1748584629262,0.20746824,106040.0,106030.0,1.71098932]
[1748584629480,0.20746824,106040.0,106030.0,3.65445032]
[1748584629701,0.20746824,106040.0,106030.0,3.62732632]
[1748584629915,0.20746824,106040.0,106030.0,3.43959132]
[1748584630330,0.20746824,106040.0,106030.0,3.42299132]
[1748584630547,0.20746824,106040.0,106030.0,3.39834332]
[1748584630762,0.20746824,106040.0,106030.0,3.32166632]
[1748584631175,0.20746824,106040.0,106030.0,2.29463932]
[1748584631386,0.20746824,106040.0,106030.0,2.26920232]
[1748584631600,0.20746824,106040.0,106030.0,2.68792432]
[1748584632256,0.20746824,106040.0,106030.0,2.67272432]
[1748584633587,0.22346824,106040.0,106030.0,1.28865147]
[1748584633792,0.23876824,106040.0,106030.0,1.37830471]
[1748584633972,0.23876824,106040.0,106030.0,1.44472271]
[1748584637557,0.23876824,106040.0,106030.0,1.84472271]
[1748584637983,0.23876824,106040.0,106030.0,1.44472271]
[1748584638433,0.23876824,106040.0,106030.0,1.84472271]
[1748584638646,0.23876824,106040.0,106030.0,1.44472271]
[1748584639109,0.22346824,106040.0,106030.0,1.44472271]
[1748584639351,0.22346824,106040.0,106030.0,1.84472271]
[1748584639839,0.22346824,106040.0,106030.0,1.44472271]
[1748584640259,0.22346824,106040.0,106030.0,1.84472271]
[1748584643304,0.22346824,106040.0,106030.0,1.55560271]
[1748584643523,0.23986824,106040.0,106030.0,1.84468271]
[1748584644872,0.23986824,106040.0,106030.0,1.44468271]
[1748584645512,0.23986824,106040.0,106030.0,1.84468271]
[1748584647728,0.23986824,106040.0,106030.0,1.43760271]
[1748584648278,0.23986824,106040.0,106030.0,1.41760271]
[1748584650213,0.23986824,106040.0,106030.0,1.01760271]
[1748584650636,0.23986824,106040.0,106030.0,1.41760271]
[1748584652195,0.23986824,106040.0,106030.0,1.01760271]
[1748584653776,0.11491238,106040.0,106030.0,1.01760271]
[1748584654005,0.13377255,106040.0,106030.0,1.01760271]
[1748584659700,0.13377255,106040.0,106030.0,0.67760271]
[1748584664624,0.13377255,106040.0,106030.0,0.20454771]
[1748584664830,0.13377255,106040.0,106030.0,0.49350771]
[1748584665049,0.13377255,106040.0,106030.0,0.02461376]
[1748584665305,0.13377255,106040.0,106030.0,0.40237376]
[1748584666550,0.13377255,106040.0,106030.0,0.38380904]
[1748584667681,0.13377255,106040.0,106030.0,0.00604904]
[1748584667917,0.20973514,106040.0,106030.0,0.38380904]
[1748584668619,0.20973514,106040.0,106030.0,0.08884904]
[1748584668829,0.20973514,106040.0,106030.0,0.37780904]
[1748584669034,0.20973514,106040.0,106030.0,0.38180904]
[1748584669286,0.20973514,106040.0,106030.0,0.37980904]
[1748584670274,0.13377255,106040.0,106030.0,0.37980904]
[1748584670898,0.13377255,106040.0,106030.0,0.37780904]
[1748584676135,0.13377255,106040.0,106030.0,4.904e-05]
[1748584676337,0.13377255,106040.0,106030.0,0.37776904]
[1748584676548,0.47377255,106040.0,106030.0,4.904e-05]
[1748584676979,0.5648265,106040.0,106030.0,4.904e-05]
[1748584677184,0.5648265,106040.0,106030.0,0.28896904]
[1748584678461,0.5658265,106040.0,106030.0,0.28896904]
[1748584678734,0.5668265,106040.0,106030.0,0.28896904]
[1748584678970,0.5668265,106040.0,106030.0,4.904e-05]
[1748584679187,0.5668265,106040.0,106030.0,0.28896904]
[1748584681599,0.47577255,106040.0,106030.0,0.28896904]
[1748584684377,0.45937255,106040.0,106030.0,0.28896904]
[1748584686819,0.47447255,106040.0,106030.0,0.28896904]
[1748584689210,0.47447255,106040.0,106030.0,0.28892904]
[1748584690270,0.47447255,106040.0,106030.0,0.08884904]
[1748584690490,0.47447255,106040.0,106030.0,0.37772904]
[1748584690700,0.47447255,106040.0,106030.0,0.08884904]
[1748584690915,0.47447255,106040.0,106030.0,0.37772904]
[1748584691799,0.47447255,106040.0,106030.0,4.904e-05]
[1748584692011,0.47447255,106040.0,106030.0,0.28892904]
[1748584692222,0.47447255,106040.0,106030.0,4.904e-05]
[1748584692455,0.47447255,106040.0,106030.0,0.28892904]
[1748584695025,0.5655265,106040.0,106030.0,4.904e-05]
[1748584695241,0.5655265,106040.0,106030.0,0.28892904]
[1748584697174,0.5655265,106040.0,106030.0,4.904e-05]
[1748584697335,0.5655265,106040.0,106030.0,0.28892904]
[1748584698573,0.5655265,106040.0,106030.0,0.28888904]
[1748584698791,0.47447255,106040.0,106030.0,0.28888904]
[1748584698998,0.44337255,106040.0,106030.0,0.28888904]
[1748584703975,0.10337255,106040.0,106030.0,0.28888904]
[1748584704997,0.02086017,106040.0,106030.0,0.28888904]
[1748584705359,0.20946824,106040.0,106030.0,0.28888904]
[1748584706373,0.20946824,106040.0,106030.0,0.30428904]
[1748584706580,0.20946824,106040.0,106030.0,0.32008904]
[1748584706786,0.20946824,106040.0,106030.0,0.41114299]
[1748584706997,0.20946824,106040.0,106030.0,0.98925399]
[1748584707215,0.20946824,106040.0,106030.0,0.94821799]
[1748584707423,0.20846824,106040.0,106030.0,0.88270399]
[1748584707638,0.20846824,106040.0,106030.0,0.79610399]
[1748584708139,0.20746824,106040.0,106030.0,0.79610399]
[1748584710814,0.20746824,106040.0,106030.0,1.19610399]
[1748584712918,0.20746824,106040.0,106030.0,1.41813265]
[1748584712919,0.00942969,106040.0,106030.0,1.41813265]
[1748584713047,0.2263069,106050.0,106040.0,0.45642914]
[1748584713247,0.21687801,106050.0,106040.0,0.4381648]
[1748584713575,0.20744903,106050.0,106040.0,0.3984188]
[1748584713985,0.20744903,106050.0,106040.0,0.60588758]
[1748584714382,0.19901979,106050.0,106040.0,1.00588758]
[1748584714594,0.18959028,106050.0,106040.0,0.7984188]
[1748584714994,0.18959028,106050.0,106040.0,0.8078492]
[1748584715462,0.20001979,106050.0,106040.0,0.99645727]
[1748584715608,0.20944894,106050.0,106040.0,1.01531762]
[1748584715970,0.20944894,106050.0,106040.0,1.35531762]
[1748584716306,0.21887792,106050.0,106040.0,1.35531762]
[1748584716653,0.20944894,106050.0,106040.0,1.34588758]
[1748584717485,0.2000197,106050.0,106040.0,1.34588758]
[1748584718128,0.2000197,106050.0,106040.0,3.8281588]
[1748584718260,0.2000197,106050.0,106040.0,3.7853568]
[1748584719056,0.2000197,106050.0,106040.0,4.3315008]
[1748584719259,0.2000197,106050.0,106040.0,3.8199238]
[1748584719464,0.2000197,106050.0,106040.0,3.80106327]
[1748584719667,0.2000197,106050.0,106040.0,3.6124552]
[1748584720073,0.2000197,106050.0,106040.0,1.3822052]
[1748584720365,0.19059028,106050.0,106040.0,4.3762898]
[1748584721378,0.19059028,106050.0,106040.0,5.5068498]
[1748584721808,0.19059028,106050.0,106040.0,5.4772308]
[1748584722431,0.19059028,106050.0,106040.0,5.4997948]
[1748584723410,0.19059028,106050.0,106040.0,5.4126908]
[1748584723619,0.19059028,106050.0,106040.0,4.2575378]
[1748584724244,0.19059028,106050.0,106040.0,3.5289008]
[1748584724610,0.19059028,106050.0,106040.0,3.5748898]
[1748584725522,0.19059028,106050.0,106040.0,1.6614548]
[1748584725676,0.19059028,106050.0,106040.0,3.2481118]
[1748584726637,0.19059028,106050.0,106040.0,3.4582158]
[1748584727490,0.19059028,106050.0,106040.0,4.3761368]
[1748584727717,0.19059028,106050.0,106040.0,3.4601948]
[1748584728088,0.19059028,106050.0,106040.0,3.0955178]
[1748584728295,0.19059028,106050.0,106040.0,2.9355178]
[1748584728524,0.19059028,106050.0,106040.0,1.6614548]
[1748584728698,0.19059028,106050.0,106040.0,2.9970118]
[1748584728913,0.19059028,106050.0,106040.0,2.8741618]
[1748584729620,0.19059028,106050.0,106040.0,4.2328078]
[1748584730030,0.19059028,106050.0,106040.0,3.9835938]
[1748584730613,0.19059028,106050.0,106040.0,5.3722988]
[1748584730793,0.19059028,106050.0,106040.0,4.8816048]
[1748584730995,0.19059028,106050.0,106040.0,4.7733168]
[1748584731778,0.18959028,106050.0,106040.0,4.9902602]
[1748584731999,0.18859028,106050.0,106040.0,5.2644178]
[1748584732620,0.18859028,106050.0,106040.0,5.2738482]
[1748584732821,0.18859028,106050.0,106040.0,1.6614548]
[1748584733036,0.18859028,106050.0,106040.0,4.5088318]
[1748584733453,0.18859028,106050.0,106040.0,4.70687027]
[1748584733653,0.18859028,106050.0,106040.0,4.72573062]
[1748584733863,0.18859028,106050.0,106040.0,1.86892349]
[1748584734067,0.18859028,106050.0,106040.0,5.41595949]
[1748584734517,0.1980197,106050.0,106040.0,5.41595949]
[1748584734684,0.20742947,106060.0,106050.0,2.56053485]
[1748584734914,0.20742947,106060.0,106050.0,1.1286918]
[1748584735105,0.20742947,106060.0,106050.0,0.8309688]
[1748584735260,0.20742947,106060.0,106050.0,1.2309688]
[1748584735679,0.20742947,106060.0,106050.0,1.1145508]
[1748584735883,0.20842947,106060.0,106050.0,1.2015018]
[1748584736104,0.20942947,106060.0,106050.0,1.2015018]
[1748584736994,0.20942947,106060.0,106050.0,1.4749378]
[1748584738337,0.20942947,106060.0,106050.0,1.47045812]
[1748584739676,0.20942947,106060.0,106050.0,1.45646112]
[1748584740532,0.20942947,106060.0,106050.0,1.24493912]
[1748584741165,0.20942947,106060.0,106050.0,1.49470912]
[1748584742222,0.20942947,106060.0,106050.0,1.92378382]
[1748584742435,0.20942947,106060.0,106050.0,1.93878382]
[1748584742655,0.20942947,106060.0,106050.0,1.94252458]
[1748584742854,0.20942947,106060.0,106050.0,1.95195373]
[1748584743055,0.19900112,106060.0,106050.0,1.94252458]
[1748584743258,0.19900112,106060.0,106050.0,3.61408758]
[1748584743760,0.19900112,106060.0,106050.0,3.62351691]
[1748584743962,0.19900112,106060.0,106050.0,3.63294615]
[1748584744219,0.19800112,106060.0,106050.0,3.84944615]
[1748584744418,0.19800112,106060.0,106050.0,3.84444615]
[1748584744622,0.19800112,106060.0,106050.0,3.60834291]
[1748584744825,0.1885725,106060.0,106050.0,3.60834291]
[1748584745031,0.1885725,106060.0,106050.0,3.01683416]
[1748584745201,0.1885725,106060.0,106050.0,2.687655]
[1748584745407,0.1885725,106060.0,106050.0,3.24753967]
[1748584745675,0.1885725,106060.0,106050.0,3.026469]
[1748584746039,0.1885725,106060.0,106050.0,3.03589824]
[1748584746253,0.1885725,106060.0,106050.0,3.04532739]
[1748584746463,0.1885725,106060.0,106050.0,0.77626339]
[1748584746676,0.1885725,106060.0,106050.0,3.27819639]
[1748584746856,0.1885725,106060.0,106050.0,3.26876724]
[1748584747518,0.1885725,106060.0,106050.0,3.690912]
[1748584747721,0.1885725,106060.0,106050.0,3.429812]
[1748584748501,0.1885725,106060.0,106050.0,3.192789]
[1748584749424,0.1885725,106060.0,106050.0,2.99476939]
[1748584749607,0.1885725,106060.0,106050.0,1.87346639]
[1748584749809,0.1885725,106060.0,106050.0,1.43566239]
[1748584750023,0.1885725,106060.0,106050.0,1.83645167]
[1748584750676,0.1885725,106060.0,106050.0,1.85378639]
[1748584750865,0.1885725,106060.0,106050.0,1.82069739]
[1748584751790,0.1885725,106060.0,106050.0,1.80540239]
[1748584752710,0.1885725,106060.0,106050.0,0.81680539]
[1748584752950,0.1885725,106060.0,106050.0,2.01269939]
[1748584753179,0.1885725,106060.0,106050.0,1.90798839]
[1748584753419,0.1885725,106060.0,106050.0,1.87055088]
[1748584753649,0.1885725,106060.0,106050.0,1.84149388]
[1748584753903,0.1885725,106060.0,106050.0,1.84132288]
[1748584754876,0.1885725,106060.0,106050.0,2.09789988]
[1748584755111,0.1885725,106060.0,106050.0,1.99319988]
[1748584755346,0.1885725,106060.0,106050.0,1.70467988]
[1748584755574,0.2045725,106060.0,106050.0,1.51016188]
[1748584755799,0.2209725,106060.0,106050.0,1.51016188]
[1748584756025,0.2209725,106060.0,106050.0,1.23032988]
[1748584757137,0.2209725,106060.0,106050.0,1.22654912]
[1748584764227,0.2209725,106060.0,106050.0,1.63362912]
[1748584765844,0.2209725,106060.0,106050.0,1.63736988]
[1748584766062,0.2209725,106060.0,106050.0,1.63362912]
[1748584766508,0.2209725,106060.0,106050.0,1.57805288]
[1748584769243,0.2209725,106060.0,106050.0,1.57431212]
[1748584771458,0.2045725,106060.0,106050.0,1.57431212]
[1748584771666,0.1885725,106060.0,106050.0,1.57431212]
[1748584772109,0.1885725,106060.0,106050.0,1.58374154]
[1748584772317,0.1885725,106060.0,106050.0,1.57431212]
[1748584772957,0.1885725,106060.0,106050.0,1.57805288]
[1748584773167,0.2051725,106060.0,106050.0,1.56853256]
[1748584773867,0.2206725,106060.0,106050.0,1.56853256]
[1748584774307,0.2051725,106060.0,106050.0,1.56853256]
[1748584774957,0.2051725,106060.0,106050.0,0.17961395]
[1748584774958,0.2206725,106060.0,106050.0,0.17961395]
[1748584775221,0.2206725,106060.0,106050.0,0.46817395]
[1748584775431,0.2206725,106060.0,106050.0,0.17961395]
[1748584775643,0.2206725,106060.0,106050.0,0.46817395]
[1748584776710,0.2206725,106060.0,106050.0,0.09105395]
[1748584776947,0.2206725,106060.0,106050.0,0.37708]
[1748584778115,0.2206725,106060.0,106050.0,0.08856]
[1748584778327,0.2206725,106060.0,106050.0,0.37704]